[Event "*** Titled Tuesday 3|2 Blitz"]
[Site "Chess.com"]
[Date "2016.03.01"]
[Round "2"]
[White "GianmarcoVaR"]
[Black "ArnaudovP"]
[Result "1-0"]
[WhiteElo "2366"]
[BlackElo "2304"]
[TimeControl "180+2"]
[EndTime "17:23:12 PST"]
[Termination "GianmarcoVaR won by resignation"]

1. d4 {[%clk 0:02:56.6]} 1... Nf6 {[%clk 0:02:59.3]} 2. Nf3 {[%clk 0:02:58]}
2... c5 {[%clk 0:02:56.7]} 3. d5 {[%clk 0:02:58.6]} 3... g6 {[%clk 0:02:50.1]}
4. Nc3 {[%clk 0:02:59.1]} 4... Bg7 {[%clk 0:02:51.3]} 5. e3 {[%clk 0:03:01]}
5... O-O {[%clk 0:02:52.2]} 6. Be2 {[%clk 0:03:02]} 6... d6 {[%clk 0:02:53.2]}
7. Nd2 {[%clk 0:03:01.8]} 7... e6 {[%clk 0:02:54.5]} 8. e4 {[%clk 0:03:02]} 8...
exd5 {[%clk 0:02:51.2]} 9. exd5 {[%clk 0:03:03.5]} 9... Nbd7 {[%clk 0:02:49.9]}
10. a4 {[%clk 0:02:59.7]} 10... Re8 {[%clk 0:02:49.4]} 11. O-O {[%clk
0:02:59.5]} 11... Ne5 {[%clk 0:02:46.9]} 12. f4 {[%clk 0:02:50.9]} 12... Neg4
{[%clk 0:02:38]} 13. Nc4 {[%clk 0:02:51.5]} 13... h5 {[%clk 0:02:38.5]} 14. Nb5
{[%clk 0:02:34.3]} 14... Ne4 {[%clk 0:02:30.8]} 15. c3 {[%clk 0:01:59.4]} 15...
a6 {[%clk 0:02:14.3]} 16. Nba3 {[%clk 0:01:58.7]} 16... Bf5 {[%clk 0:02:11.8]}
17. g3 {[%clk 0:01:49.7]} 17... b5 {[%clk 0:02:06.6]} 18. Nd2 {[%clk 0:01:40.4]}
18... Ne3 {[%clk 0:02:03.2]} 19. Qe1 {[%clk 0:01:35.4]} 19... Nxf1 {[%clk
0:02:02.7]} 20. Nxf1 {[%clk 0:01:32.3]} 20... b4 {[%clk 0:02:01.3]} 21. cxb4
{[%clk 0:01:21.2]} 21... Bd4+ {[%clk 0:02:00.4]} 22. Be3 {[%clk 0:01:22.5]}
22... Qf6 {[%clk 0:01:23.4]} 23. bxc5 {[%clk 0:01:11.6]} 23... Nxc5 {[%clk
0:01:20.5]} 24. Nc4 {[%clk 0:00:58.2]} 24... Nd3 {[%clk 0:01:04.6]} 25. Qd2
{[%clk 0:00:49.1]} 25... Bxe3+ {[%clk 0:00:57.1]} 26. Nfxe3 {[%clk 0:00:49.6]}
26... Nc5 {[%clk 0:00:50.9]} 27. Rd1 {[%clk 0:00:33.3]} 27... Be4 {[%clk
0:00:48]} 28. Qd4 {[%clk 0:00:31.1]} 28... Qxd4 {[%clk 0:00:47.8]} 29. Rxd4
{[%clk 0:00:32.6]} 29... Rab8 {[%clk 0:00:47.3]} 30. Nxd6 {[%clk 0:00:31.5]}
30... Re7 {[%clk 0:00:45.4]} 31. b4 {[%clk 0:00:31.6]} 31... Nb3 {[%clk
0:00:34.2]} 32. Rxe4 {[%clk 0:00:29.5]} 32... Rxe4 {[%clk 0:00:35]} 33. Nxe4
{[%clk 0:00:30.8]} 33... Rxb4 {[%clk 0:00:34.3]} 34. Nc3 {[%clk 0:00:27.1]}
34... Nc5 {[%clk 0:00:31.5]} 35. d6 {[%clk 0:00:25.2]} 35... Rd4 {[%clk
0:00:28.8]} 36. Ned5 {[%clk 0:00:22.7]} 36... Kf8 {[%clk 0:00:26.5]} 37. a5
{[%clk 0:00:23]} 37... Ke8 {[%clk 0:00:25.8]} 38. Kf2 {[%clk 0:00:24.1]} 38...
Kd7 {[%clk 0:00:24.6]} 39. Ke3 {[%clk 0:00:24.2]} 39... Nb3 {[%clk 0:00:21.3]}
40. Bd1 {[%clk 0:00:23.6]} 40... Rxd1 {[%clk 0:00:14.1]} 41. Nxd1 {[%clk
0:00:24]} 41... Kxd6 {[%clk 0:00:16]} 42. Nb4 {[%clk 0:00:23.5]} 42... Nxa5
{[%clk 0:00:16.8]} 43. Nxa6 {[%clk 0:00:24.4]} 43... f6 {[%clk 0:00:17.2]} 44.
Nb4 {[%clk 0:00:24.8]} 44... Ke6 {[%clk 0:00:17.9]} 45. Nc2 {[%clk 0:00:25.6]}
45... g5 {[%clk 0:00:18]} 46. Nd4+ {[%clk 0:00:26.1]} 46... Kf7 {[%clk
0:00:19.1]} 47. f5 {[%clk 0:00:26.4]} 47... Nc4+ {[%clk 0:00:20.2]} 48. Kf3
{[%clk 0:00:26.9]} 48... Ne5+ {[%clk 0:00:21.3]} 49. Kg2 {[%clk 0:00:26.8]}
49... Nc4 {[%clk 0:00:22.2]} 50. h3 {[%clk 0:00:27]} 50... Ke7 {[%clk
0:00:22.5]} 51. Kf3 {[%clk 0:00:27.7]} 51... Kd6 {[%clk 0:00:23.5]} 52. g4
{[%clk 0:00:19.6]} 52... hxg4+ {[%clk 0:00:23.4]} 53. hxg4 {[%clk 0:00:20.8]}
53... Ne5+ {[%clk 0:00:23.4]} 54. Kg3 {[%clk 0:00:21.3]} 54... Nc4 {[%clk
0:00:24.6]} 55. Nc3 {[%clk 0:00:18.6]} 55... Ke7 {[%clk 0:00:24.8]} 56. Nd5+
{[%clk 0:00:18.1]} 56... Kf7 {[%clk 0:00:26]} 57. Nb5 {[%clk 0:00:12.9]} 57...
Ne5 {[%clk 0:00:26.7]} 58. Nd6+ {[%clk 0:00:13.3]} 58... Kg7 {[%clk 0:00:27.2]}
59. Ne8+ {[%clk 0:00:14.2]} 59... Kh6 {[%clk 0:00:28.4]} 60. Nexf6 {[%clk
0:00:15]} 60... Nc4 {[%clk 0:00:28.6]} 61. Ne4 {[%clk 0:00:15.1]} 61... Ne5
{[%clk 0:00:29.4]} 62. Nc7 {[%clk 0:00:15.6]} 62... Kg7 {[%clk 0:00:29.8]} 63.
Ne6+ {[%clk 0:00:16.2]} 63... Kh6 {[%clk 0:00:29.8]} 64. N6xg5 {[%clk
0:00:16.5]} 64... Nd3 {[%clk 0:00:29.8]} 65. Nf3 {[%clk 0:00:17]} 65... Kg7
{[%clk 0:00:29.6]} 66. g5 {[%clk 0:00:17.6]} 66... Kf7 {[%clk 0:00:30.6]} 67.
g6+ {[%clk 0:00:18.2]} 67... Kg7 {[%clk 0:00:31.4]} 68. Kg4 {[%clk 0:00:19.1]}
68... Nb4 {[%clk 0:00:30.8]} 69. Kg5 {[%clk 0:00:19.4]} 69... Nd5 {[%clk
0:00:32.5]} 70. f6+ {[%clk 0:00:20.5]} 70... Kg8 {[%clk 0:00:33.8]} 71. Ne5
{[%clk 0:00:20]} 71... Nc7 {[%clk 0:00:32.7]} 72. Nc5 {[%clk 0:00:19]} 72... Kh8
{[%clk 0:00:32.3]} 73. Kf5 {[%clk 0:00:14.3]} 73... Nd5 {[%clk 0:00:30.9]} 74.
Nf7+ {[%clk 0:00:14.6]} 74... Kg8 {[%clk 0:00:31.4]} 75. Nh6+ {[%clk 0:00:15.8]}
75... Kh8 {[%clk 0:00:32.5]} 76. g7+ {[%clk 0:00:16.7]} 1-0

[Event "*** Titled Tuesday 3|2 Blitz"]
[Site "Chess.com"]
[Date "2016.03.01"]
[Round "3"]
[White "MinhGTrAn"]
[Black "DanielNaroditsky"]
[Result "1/2-1/2"]
[WhiteElo "2672"]
[BlackElo "2574"]
[TimeControl "180+2"]
[EndTime "17:28:34 PST"]
[Termination "Game drawn by repetition"]

1. d4 {[%clk 0:03:01.9]} 1... Nf6 {[%clk 0:03:00.6]} 2. c4 {[%clk 0:03:03.3]}
2... e6 {[%clk 0:03:02.1]} 3. Nc3 {[%clk 0:03:04.3]} 3... Bb4 {[%clk 0:03:02.1]}
4. e3 {[%clk 0:03:05.9]} 4... O-O {[%clk 0:03:00.8]} 5. Ne2 {[%clk 0:03:07.5]}
5... c6 {[%clk 0:03:01.5]} 6. Bd2 {[%clk 0:03:04.5]} 6... d5 {[%clk 0:03:00.4]}
7. a3 {[%clk 0:02:58.7]} 7... Bd6 {[%clk 0:02:52.4]} 8. c5 {[%clk 0:02:59.7]}
8... Bc7 {[%clk 0:02:53.2]} 9. f4 {[%clk 0:03:01.6]} 9... b6 {[%clk 0:02:52.9]}
10. b4 {[%clk 0:03:02.5]} 10... a5 {[%clk 0:02:53.6]} 11. Ng3 {[%clk 0:03:00.9]}
11... Ba6 {[%clk 0:02:46.8]} 12. Be2 {[%clk 0:02:55.7]} 12... axb4 {[%clk
0:02:37.9]} 13. axb4 {[%clk 0:02:56.2]} 13... Bxe2 {[%clk 0:02:39.1]} 14. Ngxe2
{[%clk 0:02:57.8]} 14... Nbd7 {[%clk 0:02:36.3]} 15. O-O {[%clk 0:02:57.1]}
15... bxc5 {[%clk 0:02:35.3]} 16. bxc5 {[%clk 0:02:57.7]} 16... Rxa1 {[%clk
0:02:30.3]} 17. Qxa1 {[%clk 0:02:59.6]} 17... Qa8 {[%clk 0:02:31.3]} 18. h3
{[%clk 0:02:54.9]} 18... Rb8 {[%clk 0:02:29.5]} 19. g4 {[%clk 0:02:46.8]} 19...
h6 {[%clk 0:02:30.8]} 20. Rb1 {[%clk 0:02:43.3]} 20... Rxb1+ {[%clk 0:02:14.7]}
21. Qxb1 {[%clk 0:02:44.4]} 21... Ba5 {[%clk 0:02:09.8]} 22. Qa2 {[%clk
0:02:42.2]} 22... Qa6 {[%clk 0:02:09.2]} 23. Kf2 {[%clk 0:02:21.2]} 23... Nb8
{[%clk 0:01:46.2]} 24. Qb1 {[%clk 0:02:17]} 24... Nbd7 {[%clk 0:01:41.6]} 25.
Qa2 {[%clk 0:02:12.7]} 25... Nb8 {[%clk 0:01:41]} 26. Qb1 {[%clk 0:02:02.6]}
26... Nbd7 {[%clk 0:01:41.1]} 27. Qa2 {[%clk 0:02:03.8]} 1/2-1/2

[Event "*** Titled Tuesday 3|2 Blitz"]
[Site "Chess.com"]
[Date "2016.03.01"]
[Round "3"]
[White "kikydu96"]
[Black "yopino"]
[Result "1-0"]
[WhiteElo "2267"]
[BlackElo "2183"]
[TimeControl "180+2"]
[EndTime "17:28:51 PST"]
[Termination "kikydu96 won by resignation"]

1. e4 {[%clk 0:03:01.9]} 1... c5 {[%clk 0:03:00.7]} 2. c3 {[%clk 0:03:02.2]}
2... g6 {[%clk 0:03:01.1]} 3. d4 {[%clk 0:03:02.8]} 3... cxd4 {[%clk 0:03:03]}
4. cxd4 {[%clk 0:03:04.5]} 4... d5 {[%clk 0:03:04]} 5. Nc3 {[%clk 0:03:06.2]}
5... dxe4 {[%clk 0:02:59]} 6. Bc4 {[%clk 0:03:07.7]} 6... Bg7 {[%clk 0:02:56]}
7. Qb3 {[%clk 0:03:09.2]} 7... e6 {[%clk 0:02:56.1]} 8. d5 {[%clk 0:03:10.8]}
8... Nf6 {[%clk 0:02:10.4]} 9. dxe6 {[%clk 0:03:10.3]} 9... O-O {[%clk
0:02:11.1]} 10. exf7+ {[%clk 0:03:10.1]} 10... Kh8 {[%clk 0:02:12.6]} 11. Nge2
{[%clk 0:03:07.9]} 11... Nc6 {[%clk 0:02:13.2]} 12. Qa4 {[%clk 0:03:00.5]} 12...
Ne5 {[%clk 0:02:06]} 13. O-O {[%clk 0:02:57.6]} 13... Bd7 {[%clk 0:02:02]} 14.
Qb3 {[%clk 0:02:57.4]} 14... Bc6 {[%clk 0:02:03.4]} 15. Be3 {[%clk 0:02:57.2]}
15... Nfg4 {[%clk 0:02:00.7]} 16. h3 {[%clk 0:02:53.4]} 16... Nf3+ {[%clk
0:01:54.4]} 17. gxf3 {[%clk 0:02:33.9]} 17... Ne5 {[%clk 0:01:54.4]} 18. fxe4
{[%clk 0:02:28.5]} 18... Nf3+ {[%clk 0:01:51.2]} 19. Kg2 {[%clk 0:02:25.3]}
19... Qh4 {[%clk 0:01:40.3]} 20. Kxf3 {[%clk 0:02:23.4]} 20... Rae8 {[%clk
0:01:15]} 21. Ng3 {[%clk 0:02:21.9]} 1-0

[Event "*** Titled Tuesday 3|2 Blitz"]
[Site "Chess.com"]
[Date "2016.03.01"]
[Round "3"]
[White "vellottiwizard"]
[Black "Tesla17"]
[Result "1-0"]
[WhiteElo "2463"]
[BlackElo "2295"]
[TimeControl "180+2"]
[EndTime "17:29:14 PST"]
[Termination "vellottiwizard won by resignation"]

1. e4 {[%clk 0:03:01.9]} 1... c5 {[%clk 0:03:01]} 2. Nf3 {[%clk 0:03:01.4]} 2...
g6 {[%clk 0:03:02.5]} 3. d4 {[%clk 0:03:02.8]} 3... cxd4 {[%clk 0:03:04.4]} 4.
Nxd4 {[%clk 0:03:04.5]} 4... Bg7 {[%clk 0:03:05.9]} 5. Nc3 {[%clk 0:03:05.4]}
5... Nc6 {[%clk 0:03:04.1]} 6. Be3 {[%clk 0:03:05.9]} 6... Nf6 {[%clk
0:03:05.6]} 7. Be2 {[%clk 0:03:07.3]} 7... O-O {[%clk 0:03:06.4]} 8. Nb3 {[%clk
0:03:08.8]} 8... d6 {[%clk 0:03:06.5]} 9. O-O {[%clk 0:03:09.2]} 9... Bd7 {[%clk
0:03:07.4]} 10. f4 {[%clk 0:03:09.8]} 10... a6 {[%clk 0:03:07.2]} 11. Bf3 {[%clk
0:03:09.2]} 11... Rc8 {[%clk 0:03:07.8]} 12. g4 {[%clk 0:03:09.6]} 12... Na5
{[%clk 0:03:03.9]} 13. g5 {[%clk 0:02:53.9]} 13... Ne8 {[%clk 0:02:58.2]} 14.
Nxa5 {[%clk 0:02:53.2]} 14... Qxa5 {[%clk 0:02:58]} 15. Nd5 {[%clk 0:02:54.8]}
15... Bxb2 {[%clk 0:02:10]} 16. Nxe7+ {[%clk 0:02:52.9]} 16... Kh8 {[%clk
0:02:06.5]} 17. Bd4+ {[%clk 0:02:53.9]} 17... Bxd4+ {[%clk 0:02:02.3]} 18. Qxd4+
{[%clk 0:02:55.8]} 18... f6 {[%clk 0:02:02.6]} 19. Nxc8 {[%clk 0:02:55.8]} 19...
Bxc8 {[%clk 0:02:01.8]} 20. gxf6 {[%clk 0:02:51.6]} 20... Rxf6 {[%clk
0:01:56.3]} 21. e5 {[%clk 0:02:51.2]} 21... dxe5 {[%clk 0:01:51.2]} 22. fxe5
{[%clk 0:02:50.5]} 22... Rf8 {[%clk 0:01:43.9]} 23. e6+ {[%clk 0:02:43.3]} 23...
Ng7 {[%clk 0:01:39.8]} 24. Bd5 {[%clk 0:02:41]} 24... Re8 {[%clk 0:01:36]} 25.
e7 {[%clk 0:02:41.1]} 25... Bf5 {[%clk 0:01:18.9]} 26. Rae1 {[%clk 0:02:36.7]}
26... Qc7 {[%clk 0:01:18.4]} 27. Qe5 {[%clk 0:02:29.3]} 27... Qc5+ {[%clk
0:01:13.2]} 28. Rf2 {[%clk 0:02:29.7]} 28... h6 {[%clk 0:01:05.1]} 29. Bf7
{[%clk 0:02:26.8]} 1-0

[Event "*** Titled Tuesday 3|2 Blitz"]
[Site "Chess.com"]
[Date "2016.03.01"]
[Round "3"]
[White "GMHess"]
[Black "pedromartinez91"]
[Result "1-0"]
[WhiteElo "2629"]
[BlackElo "2313"]
[TimeControl "180+2"]
[EndTime "17:30:12 PST"]
[Termination "GMHess won by checkmate"]

1. b3 {[%clk 0:03:01.9]} 1... d5 {[%clk 0:00:32.6]} 2. Bb2 {[%clk 0:03:03.8]}
2... Nf6 {[%clk 0:00:32.5]} 3. e3 {[%clk 0:03:02.6]} 3... e6 {[%clk 0:00:33.6]}
4. Nf3 {[%clk 0:03:03.9]} 4... Be7 {[%clk 0:00:34.8]} 5. c4 {[%clk 0:03:05.2]}
5... O-O {[%clk 0:00:35.8]} 6. cxd5 {[%clk 0:03:06.8]} 6... exd5 {[%clk
0:00:36.6]} 7. Bd3 {[%clk 0:03:08.2]} 7... c6 {[%clk 0:00:38.2]} 8. O-O {[%clk
0:03:09.2]} 8... Nbd7 {[%clk 0:00:39.7]} 9. Nd4 {[%clk 0:03:08]} 9... Ne5 {[%clk
0:00:38.8]} 10. Bc2 {[%clk 0:03:05.1]} 10... Ng6 {[%clk 0:00:39.4]} 11. f4
{[%clk 0:03:04.1]} 11... Ne4 {[%clk 0:00:40.2]} 12. f5 {[%clk 0:02:56.5]} 12...
Ne5 {[%clk 0:00:38.1]} 13. Bxe4 {[%clk 0:02:21.3]} 13... dxe4 {[%clk 0:00:38.2]}
14. Nc3 {[%clk 0:02:22.8]} 14... Nd3 {[%clk 0:00:36.8]} 15. Bc1 {[%clk
0:02:17.4]} 15... Bf6 {[%clk 0:00:34.2]} 16. Nde2 {[%clk 0:02:12]} 16... Nxc1
{[%clk 0:00:20]} 17. Rxc1 {[%clk 0:02:13.9]} 17... Re8 {[%clk 0:00:16.9]} 18.
Ng3 {[%clk 0:02:09.4]} 18... Qd3 {[%clk 0:00:17.3]} 19. Qg4 {[%clk 0:02:06]}
19... Qxd2 {[%clk 0:00:15.7]} 20. Ncxe4 {[%clk 0:02:07.3]} 20... Qxe3+ {[%clk
0:00:16]} 21. Kh1 {[%clk 0:02:08.9]} 21... Qd4 {[%clk 0:00:14.6]} 22. Rce1
{[%clk 0:01:37.5]} 22... Qb2 {[%clk 0:00:11.3]} 23. Nxf6+ {[%clk 0:01:38]} 23...
Qxf6 {[%clk 0:00:11.4]} 24. Rxe8# {[%clk 0:01:39.9]} 1-0

[Event "*** Titled Tuesday 3|2 Blitz"]
[Site "Chess.com"]
[Date "2016.03.01"]
[Round "3"]
[White "spectralsoul"]
[Black "lionheart95"]
[Result "1-0"]
[WhiteElo "2539"]
[BlackElo "2341"]
[TimeControl "180+2"]
[EndTime "17:30:43 PST"]
[Termination "spectralsoul won by checkmate"]

1. e4 {[%clk 0:03:01.9]} 1... e6 {[%clk 0:02:59.7]} 2. d3 {[%clk 0:03:02.5]}
2... d5 {[%clk 0:03:00.5]} 3. Nd2 {[%clk 0:03:04.4]} 3... Nf6 {[%clk 0:03:00.5]}
4. Ngf3 {[%clk 0:03:05.4]} 4... g6 {[%clk 0:03:01.7]} 5. e5 {[%clk 0:03:01.7]}
5... Nfd7 {[%clk 0:03:01.1]} 6. d4 {[%clk 0:03:03.2]} 6... c5 {[%clk 0:03:00.4]}
7. c3 {[%clk 0:03:04.7]} 7... Nc6 {[%clk 0:03:01.2]} 8. h4 {[%clk 0:03:06]} 8...
h6 {[%clk 0:03:01]} 9. Nb3 {[%clk 0:02:50.5]} 9... cxd4 {[%clk 0:02:59.1]} 10.
cxd4 {[%clk 0:02:51.6]} 10... a5 {[%clk 0:03:00.4]} 11. Be3 {[%clk 0:02:49]}
11... a4 {[%clk 0:02:58.9]} 12. Nbd2 {[%clk 0:02:50.4]} 12... a3 {[%clk
0:02:57.7]} 13. b3 {[%clk 0:02:50.9]} 13... Bb4 {[%clk 0:02:57.4]} 14. Bd3
{[%clk 0:02:49.3]} 14... Qb6 {[%clk 0:02:57]} 15. O-O {[%clk 0:02:48.1]} 15...
Bc3 {[%clk 0:02:57.9]} 16. Rc1 {[%clk 0:02:48.3]} 16... Bb2 {[%clk 0:02:58.4]}
17. Bb1 {[%clk 0:02:29.5]} 17... Nxd4 {[%clk 0:02:38.7]} 18. Nxd4 {[%clk
0:02:22.7]} 18... Bxd4 {[%clk 0:02:37.8]} 19. Nc4 {[%clk 0:02:23.7]} 19... dxc4
{[%clk 0:02:31.6]} 20. Bxd4 {[%clk 0:02:25.1]} 20... Qa5 {[%clk 0:02:29.3]} 21.
Rxc4 {[%clk 0:02:25.2]} 21... b5 {[%clk 0:02:30.2]} 22. Rc6 {[%clk 0:02:17.4]}
22... Bb7 {[%clk 0:02:23.8]} 23. Rd6 {[%clk 0:02:18.6]} 23... Qc7 {[%clk
0:02:24.6]} 24. Qg4 {[%clk 0:01:54.1]} 24... Bd5 {[%clk 0:02:18.9]} 25. Rxd5
{[%clk 0:01:50.6]} 25... exd5 {[%clk 0:02:15.9]} 26. e6 {[%clk 0:01:52.1]} 26...
Ne5 {[%clk 0:02:10.3]} 27. exf7+ {[%clk 0:01:48.7]} 27... Nxf7 {[%clk
0:01:53.7]} 28. Bxg6 {[%clk 0:01:28.6]} 28... Rg8 {[%clk 0:01:50]} 29. Bxf7+
{[%clk 0:00:55]} 29... Kxf7 {[%clk 0:01:13.6]} 30. Qf5+ {[%clk 0:00:55.3]} 30...
Ke7 {[%clk 0:01:14.3]} 31. Re1+ {[%clk 0:00:50.1]} 31... Kd6 {[%clk 0:01:08.8]}
32. Qe6# {[%clk 0:00:48.1]} 1-0

[Event "*** Titled Tuesday 3|2 Blitz"]
[Site "Chess.com"]
[Date "2016.03.01"]
[Round "3"]
[White "SenseiJulio"]
[Black "Izoria123"]
[Result "0-1"]
[WhiteElo "2608"]
[BlackElo "2576"]
[TimeControl "180+2"]
[EndTime "17:32:06 PST"]
[Termination "Izoria123 won by checkmate"]

1. d4 {[%clk 0:03:01.9]} 1... Nf6 {[%clk 0:02:59.5]} 2. c4 {[%clk 0:03:03]} 2...
g6 {[%clk 0:03:00.5]} 3. Nc3 {[%clk 0:03:04.1]} 3... d5 {[%clk 0:03:01]} 4. cxd5
{[%clk 0:03:05.1]} 4... Nxd5 {[%clk 0:03:02.9]} 5. e4 {[%clk 0:03:06.4]} 5...
Nxc3 {[%clk 0:03:04.5]} 6. bxc3 {[%clk 0:03:08.1]} 6... Bg7 {[%clk 0:03:06.1]}
7. Qa4+ {[%clk 0:03:09.8]} 7... Nd7 {[%clk 0:03:04.8]} 8. Nf3 {[%clk 0:03:09.4]}
8... O-O {[%clk 0:03:01.1]} 9. Be2 {[%clk 0:03:10.1]} 9... c5 {[%clk 0:02:53.4]}
10. O-O {[%clk 0:03:11.5]} 10... a6 {[%clk 0:02:52.2]} 11. Bg5 {[%clk
0:03:06.1]} 11... b5 {[%clk 0:02:49.1]} 12. Qa3 {[%clk 0:03:05.5]} 12... h6
{[%clk 0:02:47.3]} 13. Be3 {[%clk 0:02:55.3]} 13... Bb7 {[%clk 0:02:32.1]} 14.
e5 {[%clk 0:02:19.7]} 14... cxd4 {[%clk 0:02:23.4]} 15. cxd4 {[%clk 0:02:19.2]}
15... Bd5 {[%clk 0:02:25]} 16. Qc1 {[%clk 0:02:02.3]} 16... Kh7 {[%clk
0:02:21.3]} 17. a4 {[%clk 0:02:03.4]} 17... b4 {[%clk 0:02:16.4]} 18. a5 {[%clk
0:02:04]} 18... Nb8 {[%clk 0:02:10.3]} 19. Qc5 {[%clk 0:01:28.7]} 19... Nc6
{[%clk 0:02:11.1]} 20. Nd2 {[%clk 0:01:21.2]} 20... f6 {[%clk 0:01:21]} 21. f4
{[%clk 0:00:56.5]} 21... Rc8 {[%clk 0:01:08.6]} 22. Bxa6 {[%clk 0:00:52.2]}
22... Rc7 {[%clk 0:01:10.2]} 23. Rfc1 {[%clk 0:00:47.7]} 23... e6 {[%clk
0:01:03.7]} 24. Qb6 {[%clk 0:00:33.6]} 24... Qe7 {[%clk 0:00:55.6]} 25. Qc5
{[%clk 0:00:20.4]} 25... Qf7 {[%clk 0:00:50.1]} 26. Bb5 {[%clk 0:00:17.9]} 26...
Rfc8 {[%clk 0:00:50.3]} 27. a6 {[%clk 0:00:14]} 27... fxe5 {[%clk 0:00:36.5]}
28. fxe5 {[%clk 0:00:13]} 28... Nxe5 {[%clk 0:00:37.7]} 29. Qxc7 {[%clk
0:00:14.1]} 29... Rxc7 {[%clk 0:00:38.3]} 30. Rf1 {[%clk 0:00:13.6]} 30... Qe7
{[%clk 0:00:28.9]} 31. dxe5 {[%clk 0:00:14.6]} 31... Bxe5 {[%clk 0:00:30.6]} 32.
Rae1 {[%clk 0:00:15.6]} 32... Qh4 {[%clk 0:00:30.1]} 33. h3 {[%clk 0:00:14]}
33... Qg3 {[%clk 0:00:28]} 34. Bb6 {[%clk 0:00:14.2]} 34... Qxg2# {[%clk
0:00:25.9]} 0-1

[Event "*** Titled Tuesday 3|2 Blitz"]
[Site "Chess.com"]
[Date "2016.03.01"]
[Round "3"]
[White "jcibarra"]
[Black "LADIESGET2KNOWME"]
[Result "1-0"]
[WhiteElo "2496"]
[BlackElo "2368"]
[TimeControl "180+2"]
[EndTime "17:32:14 PST"]
[Termination "jcibarra won by resignation"]

1. e4 {[%clk 0:03:01.9]} 1... e6 {[%clk 0:03:01.1]} 2. d4 {[%clk 0:03:02.5]}
2... d5 {[%clk 0:03:03]} 3. Nd2 {[%clk 0:03:02.3]} 3... Nf6 {[%clk 0:03:04.4]}
4. e5 {[%clk 0:03:03]} 4... Nfd7 {[%clk 0:03:05.9]} 5. f4 {[%clk 0:03:03.5]}
5... c5 {[%clk 0:03:07.4]} 6. c3 {[%clk 0:03:04.2]} 6... Nc6 {[%clk 0:03:08.9]}
7. Ndf3 {[%clk 0:03:04.1]} 7... Qb6 {[%clk 0:03:10.5]} 8. a3 {[%clk 0:03:04.3]}
8... Be7 {[%clk 0:03:05.3]} 9. h4 {[%clk 0:03:04]} 9... a5 {[%clk 0:02:55.7]}
10. b3 {[%clk 0:03:02.1]} 10... f6 {[%clk 0:02:22.8]} 11. Bd3 {[%clk 0:02:59.2]}
11... cxd4 {[%clk 0:02:24]} 12. cxd4 {[%clk 0:02:57.7]} 12... Nxd4 {[%clk
0:02:25.2]} 13. Nxd4 {[%clk 0:02:57.7]} 13... fxe5 {[%clk 0:02:26.8]} 14. fxe5
{[%clk 0:02:53.6]} 14... Nxe5 {[%clk 0:02:28]} 15. Qh5+ {[%clk 0:02:46.6]} 15...
Nf7 {[%clk 0:02:25.9]} 16. Bb5+ {[%clk 0:02:30.7]} 16... Bd7 {[%clk 0:02:23.1]}
17. Bxd7+ {[%clk 0:02:29.5]} 17... Kxd7 {[%clk 0:02:25]} 18. Nge2 {[%clk
0:02:13.2]} 18... g6 {[%clk 0:02:18.5]} 19. Qg4 {[%clk 0:02:08.1]} 19... Ne5
{[%clk 0:02:08]} 20. Qh3 {[%clk 0:02:04.5]} 20... Rhf8 {[%clk 0:02:01.4]} 21.
Bb2 {[%clk 0:01:52.5]} 21... Rac8 {[%clk 0:01:57.1]} 22. Rd1 {[%clk 0:01:29.1]}
22... Rf7 {[%clk 0:00:41.7]} 23. Rf1 {[%clk 0:01:11]} 23... Rcf8 {[%clk
0:00:40.2]} 24. Rxf7 {[%clk 0:01:08.1]} 24... Rxf7 {[%clk 0:00:42.1]} 25. Nxe6
{[%clk 0:00:50.9]} 25... Qf2+ {[%clk 0:00:03.9]} 26. Kd2 {[%clk 0:00:51.3]}
26... Nf3+ {[%clk 0:00:02.5]} 27. gxf3 {[%clk 0:00:44.4]} 27... Rxf3 {[%clk
0:00:04.4]} 28. Nc5+ {[%clk 0:00:39]} 28... Kc6 {[%clk 0:00:05.8]} 29. Qc8+
{[%clk 0:00:29]} 29... Kb5 {[%clk 0:00:05.8]} 30. Qxb7+ {[%clk 0:00:26]} 30...
Kxc5 {[%clk 0:00:07]} 31. Bd4+ {[%clk 0:00:22.7]} 1-0